Cogmind - Beta 13 @@@ ROGUE MODE // 2024.04.09 @ 19:46:35 Player: SpaceWalrus Result: Destroyed by D-53 Grenadier with Mini Grenade Launcher Performance ------------- Evolutions (0) 0 Regions Visited (2) 400 Robots Destroyed (24) 120 Value Destroyed (502) 502 Prototype IDs (2) 40 Alien Tech Used (0) 0 Bonus (-40) -40 TOTAL SCORE: 1022 Bonus ------- Friendly Fire -40 Cogmind --------- Core Integrity 0/250 Matter 224/300 Energy 250/250 System Corruption 0% Temperature Cool (0) Movement Core (450) Ox8 Location -10/Mines Parts ------- > --- POWER (1) -------- Ion Engine > --- PROPULSION (2) --- (None) > --- UTILITY (2) ------ Large Storage Unit Hacking Suite > --- WEAPON (2) ------- (None) > --- INVENTORY (15) --- Light Ion Engine Improved Heat Sink Weight Redist. System Visual Processing Unit Sensor Array Signal Interpreter Improved Terrain Scanner Seismic Detector Targeting Computer Medium Laser Improved Light Cannon Improved Light Cannon Improved Light Cannon Peak State ------------ > --- POWER ------------ Ion Engine > --- PROPULSION ------- Wheel Wheel > --- UTILITY ---------- Large Storage Unit Hacking Suite > --- WEAPON ----------- Improved Light Cannon Improved Light Cannon > --- INVENTORY -------- Light Ion Engine Improved Heat Sink Weight Redist. System Visual Processing Unit Sensor Array Signal Interpreter Improved Terrain Scanner Seismic Detector Targeting Computer Medium Laser Improved Light Cannon Improved Light Cannon Grenade Launcher [Rating: 13] Favorites ----------- Power Ion Engine Engine Ion Engine Propulsion Aluminum Leg Leg Aluminum Leg Wheel Wheel Utility Seismic Detector Device Seismic Detector Storage Large Storage Unit Hackware Hacking Suite Weapon Improved Light Cannon Energy Gun EM Pulse Gun Ballistic Gun Assault Rifle Ballistic Cannon Improved Light Cannon Launcher Grenade Launcher Build | -11 -10 -10 ------- Run | Yrd Mat Min Slots Evolved . | . . . Power . | . . . Propulsion . | . . . Utility . | . . . Weapon . | . . . Parts Attached 23 | 9 13 1 Power 3 | 2 1 . Engine 3 | 2 1 . Core . | . . . Reactor . | . . . Propulsion 7 | 2 5 . Treads . | . . . Leg 3 | 2 1 . Wheel 4 | . 4 . Hover . | . . . Flight . | . . . Utility 6 | 3 3 . Device 2 | 2 . . Storage 3 | 1 2 . Processor . | . . . Hackware 1 | . 1 . Protection . | . . . Artifact . | . . . Weapon 7 | 2 4 1 Energy Gun 2 | 1 1 . Energy Cannon . | . . . Ballistic Gun 1 | 1 . . Ballistic Cannon 2 | . 2 . Launcher 2 | . 1 1 Special Weapon . | . . . Impact Weapon . | . . . Slashing Weapon . | . . . Piercing Weapon . | . . . Special Melee Weapon . | . . . Unidentified Prototypes . | . . . Parts Lost 4 | . . 4 Power . | . . . Propulsion 2 | . . 2 Utility . | . . . Weapon 2 | . . 2 Highest Loss Streak 4 | . . 4 To Critical Strikes . | . . . Average Slot Usage (%) 99 | . 99 100 Engine 13 | . 13 14 Leg 11 | . 12 . Wheel 16 | . 15 28 Device 14 | . 15 . Storage 8 | . 8 14 Hackware 4 | . 3 14 Energy Gun 4 | . 4 . Ballistic Gun 6 | . 7 . Ballistic Cannon 14 | . 13 19 Launcher 2 | . 2 8 Naked Turns . | . . . Heaviest Build 34 | 15 34 33 Greatest Support 20 | 20 20 20 Greatest Overweight (x) 8 | . 1 8 Average Overweight (x) . | . . 1 Largest Inventory Capacity 15 | 8 15 15 Average Capacity 10 | 7 10 15 Most Carried 14 | 5 14 13 Average Carried 7 | 2 8 13 Final Capacity 15 | 5 15 15 Final Carried 13 | 3 13 13 Class Distribution -------------------- 100% | Mutant Dominant Class ---------------- Mutant | -10/Materials Mutant | -10/Mines Resources | -11 -10 -10 ----------- Run | Yrd Mat Min Matter Collected 869 | 330 515 24 Remotely . | . . . Salvage Created 666 | 192 456 18 Parts 48 | 13 35 . Haulers Intercepted 2 | . 2 . Recyclers Shooed 2 | . 2 . Parts Field Recycled . | . . . Retrieved Matter . | . . . Parts Self-Destructed . | . . . Prevented . | . . . Kills | -11 -10 -10 ------- Run | Yrd Mat Min Combat Hostiles Destroyed 14 | . 9 5 Guns 1 | . 1 . Cannons 6 | . 4 2 AOE 7 | . 4 3 Classes Destroyed 8 | 2 5 1 Worker 2 | . 2 . Tunneler 5 | 5 . . Hauler 2 | . 2 . Recycler 2 | 1 1 . Operator 1 | . 1 . Watcher 3 | . 3 . Grunt 9 | . 9 . Assembled 5 | . . 5 Best Kill Streak 5 | 3 3 5 Combat Bots Only 5 | . 3 5 Max Kills in Single Turn 2 | 1 1 2 Gunslinging . | . . . Exploded 2 | . 1 2 Melee . | . . . Uniques/NPCs Destroyed . | . . . Combat | -11 -10 -10 -------- Run | Yrd Mat Min Hostile Shots Fired 69 | . 42 27 Missed 15 | . 8 7 Damage Taken 947 | . 440 507 Core 267 | . 93 174 Absorbed by Shields . | . . . Regen/Repaired (Parts) 57 | . 57 . Core Remaining (%) 100 | 100 . . Volleys Fired 77 | 14 51 12 Largest 2 | 2 2 2 Hottest 78 | 60 78 78 Shots Fired 132 | 19 93 20 Gun 62 | 19 43 . Cannon 51 | . 36 15 Launcher 19 | . 14 5 Special . | . . . Kinetic 98 | 14 69 15 Thermal 10 | . 10 . Explosive 19 | . 14 5 Electromagnetic 5 | 5 . . Robot Hit Streak 7 | 3 7 4 Robot Miss Streak 4 | 2 4 2 Penetration Max . | . . . Secondary Targets . | . . . Shots Hit Robots 55 | 11 36 8 Core Hits 47 | 7 31 9 Critical Kills . | . . . Critical Parts Destroyed . | . . . Critical Strikes . | . . . Melee Attacks . | . . . Impact . | . . . Slashing . | . . . Piercing . | . . . Sneak Attacks . | . . . Combat Hostiles . | . . . Follow-up Attacks . | . . . Damage Inflicted 1591 | 139 1084 368 Guns 365 | 139 226 . Cannons 484 | . 373 111 Explosions 742 | . 485 257 Melee . | . . . Ramming . | . . . Kinetic 747 | 101 535 111 Thermal 64 | . 64 . Explosive 742 | . 485 257 Electromagnetic 38 | 38 . . Impact . | . . . Slashing . | . . . Piercing . | . . . Highest Corruption . | . . . Average Corruption . | . . . Corruption Purged . | . . . Corruption Blocked . | . . . Overload Shots . | . . . Overflow Damage . | . . . Projectiles . | . . . Explosions . | . . . Melee . | . . . Knockbacks 2 | . 1 1 Impact . | . . . Kinetic 2 | . 1 1 Secondary . | . . . Self-Inflicted Damage 30 | . 30 . Shots 3 | . 3 . Rammed . | . . . Targets Rammed . | . . . Kicked . | . . . Crushed . | . . . Highest Temperature 216 | . 216 38 Average Temperature 56 | . 65 17 Received Heat Transfer 264 | . 264 . Siege Activations . | . . . Robots Corrupted . | . . . Combat Hostiles . | . . . Parts Fried . | . . . Impact Corruptions . | . . . Robots Melted . | . . . Combat Hostiles . | . . . Parts Melted . | . . . Heat Transferred 185 | . 185 . Parts Sabotaged . | . . . Parts Stolen . | . . . Parts Stripped . | . . . Power Chain Reactions . | . . . Alert | -11 -10 -10 ------- Run | Yrd Mat Min Peak Influence 291 | 30 291 30 Initial 19 | . 19 . Average 87 | 11 105 16 Maximum Alert Level 1 | . 1 . Low Security (%) 89 | 100 87 100 Level 1 10 | . 12 . Level 2 . | . . . Level 3 . | . . . Level 4 . | . . . Level 5 . | . . . High Security . | . . . Max Security . | . . . Squads Dispatched 2 | . 2 . Investigation 1 | . 1 . Extermination . | . . . Reinforcement 1 | . 1 . Assault . | . . . Garrison . | . . . Intercept . | . . . Searches Triggered . | . . . Construction Impeded . | . . . Haulers Reinforced . | . . . Active Scanning Responses . | . . . Cargo Convoy Interrupts . | . . . Stealth | -11 -10 -10 --------- Run | Yrd Mat Min Distress Signals 1 | . 1 . Communications Jammed . | . . . Distress Signals . | . . . Times Spotted 37 | . 16 21 Peak Tracking Total 7 | . 3 7 Tactical Retreats 1 | . . 1 Traps | -11 -10 -10 ------- Run | Yrd Mat Min Traps Triggered . | . . . Indirectly . | . . . Trap Hack Attempts . | . . . Triggered . | . . . Disarmed 1 | . 1 . Reprogrammed . | . . . Reused . | . . . Traps Extracted . | . . . Installed . | . . . Triggered . | . . . Machines | -11 -10 -10 ---------- Run | Yrd Mat Min Machines Disabled 4 | . 4 . Max in Single Turn 1 | . 1 . Machines Repaired . | . . . Machines Dismantled . | . . . Machines Sabotaged . | . . . Overloaded Fab Kills . | . . . Hacking | -11 -10 -10 --------- Run | Yrd Mat Min Machines Accessed 7 | . 7 . Terminals 6 | . 6 . Fabricators . | . . . Repair Stations 1 | . 1 . Recycling Units . | . . . Scanalyzers . | . . . Garrison Access . | . . . Total Hacks 23 | . 23 . Successful 12 | . 12 . Failed 11 | . 11 . Catastrophic . | . . . Database Lockouts . | . . . Manual . | . . . Terminals 20 | . 20 . Fabricators . | . . . Repair Stations 3 | . 3 . Recycling Units . | . . . Scanalyzers . | . . . Garrison Access . | . . . Terminal Hacks 10 | . 10 . Prototype ID Bank 1 | . 1 . Branch Access Points 1 | . 1 . Terminal Index 1 | . 1 . Alert Level 3 | . 3 . Locate Traps 1 | . 1 . Disarm Traps 1 | . 1 . Dispatch Records 1 | . 1 . Registered Components 1 | . 1 . Fabricator Hacks . | . . . Repair Station Hacks 2 | . 2 . Scan Component 1 | . 1 . Repair 1 | . 1 . Recycling Unit Hacks . | . . . Scanalyzer . | . . . Garrison Access Hacks . | . . . Unauthorized Hacks . | . . . Terminals . | . . . Fabricators . | . . . Repair Stations . | . . . Recycling Units . | . . . Scanalyzers . | . . . Garrison Access . | . . . Data Cores Recovered . | . . . Used . | . . . Hacking Detections 5 | . 5 . Full Trace Events 4 | . 4 . Feedback Events . | . . . Feedback Blocked . | . . . Robot Schematics Acquired . | . . . Robots Built . | . . . Authchips . | . . . Time . | . . . Total Robot Build Rating . | . . . Part Schematics Acquired . | . . . Parts Built . | . . . Authchips . | . . . Time . | . . . Total Part Build Rating . | . . . Parts Repaired 1 | . 1 . Time 26 | . 26 . Parts Recycled . | . . . Recycled Matter . | . . . Retrieved Matter . | . . . Retrieved Components . | . . . Parts Scanalyzed . | . . . Part Schematics Acquired . | . . . Parts Damaged . | . . . Bothacking | -11 -10 -10 ------------ Run | Yrd Mat Min Used RIF Installer . | . . . Robots Hacked . | . . . Non-combat . | . . . Combat . | . . . Robot Hacks Applied . | . . . Relay Couplers Released . | . . . Fabnet Peak Effective % . | . . . Robots Rewired . | . . . Allies Hacked . | . . . Hacks Repelled . | . . . Allies | -11 -10 -10 -------- Run | Yrd Mat Min Total Allies . | . . . Largest Group . | . . . Highest-Rated Group . | . . . Highest-Rated Ally . | . . . Total Orders . | . . . Ally Attacks . | . . . Total Damage . | . . . Kills . | . . . Allies Corrupted . | . . . Allies Melted . | . . . Intel | -11 -10 -10 ------- Run | Yrd Mat Min Robot Analysis Total . | . . . Derelict Logs Recovered . | . . . Drone Launches . | . . . Drone Recoveries . | . . . Exploration | -11 -10 -10 ------------- Run | Yrd Mat Min Turns Passed 1586 | 251 1284 51 Spaces Moved 1154 | 157 980 17 Core 7 | 6 . 1 Treads . | . . . Legs 498 | 151 347 . Wheels 649 | . 633 16 Hover . | . . . Flight . | . . . Fastest Speed 50 | 50 80 95 Average Speed 105 | 117 103 115 Slowest Speed 450 | 120 120 450 Overloaded Moves . | . . . Propulsion Burnouts . | . . . Robots Hopped . | . . . Cave-ins Triggered . | . . . Exploration Rate (%) 31 | 7 79 8 Regions Visited 2 Branch Regions 1 Pre-discovered Areas . | . . . Known Exits Taken 1 | . 1 . Unknown Exits Taken 1 | 1 . . Scrap Searched . | . . . Spaces Dug . | . . . Terrain Destroyed 71 | . 46 25 Melee . | . . . Projectile 4 | . 3 1 AOE 67 | . 43 24 Terrain Rammed . | . . . Walls Destroyed . | . . . Machines Disabled . | . . . Actions | -11 -10 -10 --------- Run | Yrd Mat Min Total 1391 | 203 1158 30 Wait 99 | 15 84 . Move 1152 | 156 979 17 Hop . | . . . Pick Up 29 | 9 20 . Fast Attach 1 | 1 . . Attach 7 | 6 1 . Detach . | . . . Swap 15 | 2 12 1 Drop 11 | . 11 . Fire 77 | 14 51 12 Melee . | . . . Ram . | . . . Kick . | . . . Crush . | . . . Escape Stasis . | . . . Rewire . | . . . Trap . | . . . Miscellaneous . | . . . Route ------- -11/Scrapyard -10/Materials (discovered 3 exits: [*Mat x2] / *Min) -10/Mines History --------- Turn | Location | Event 3 | -11/Scrapyard | Discovered new exit (range 16) 252 | -11/Scrapyard | Entered Materials 269 | -10/Materials | Identified exit to Mines 316 | -10/Materials | Build established: Mutant 892 | -10/Materials | Discovered new exit (range 16) 1105 | -10/Materials | Discovered new exit (range 9) 1383 | -10/Materials | Repaired Ion Engine 1536 | -10/Materials | Entered Mines 1537 | -10/Mines | Assembled infested the area 1542 | -10/Mines | Assisted by a Guerilla fighting off Assembled 1556 | -10/Mines | Core integrity fell below 50% 1584 | -10/Mines | Core integrity fell below 20% 1587 | -10/Mines | Destroyed by D-53 Grenadier with Mini Grenade Launcher Last Messages --------------- as-40732 destroyed. as-92787 destroyed. as-71985 destroyed. as-68013 destroyed. as-04405 destroyed. Acquired 5 matter. as-64420 destroyed. The unstable cave ceiling collapses. as-75776 destroyed. The unstable cave ceiling collapses. as-11895 destroyed. The unstable cave ceiling collapses. U-05 Engineer lays Concrete. Wheel destroyed. Grenade Launcher destroyed. The unstable cave ceiling collapses. U-05 Engineer lays Concrete. Wheel destroyed. Imp. Light Cannon destroyed. U-05 Engineer lays Concrete. Map ----- +----------------------------------------------------+ | | | | | | | | | | | ????????????????????????????????????????? | | ????????????????????????????????????????? | | ????????????????????????????????????????? | | ????????????????????????????????????????? | | ????????????????????????????????????????? | | ????????????????????????????????????????? | | ????????????????????????????????????????? | | ????????????????????????????????????????? | | ????????????????????????????????????????? | | ????????????????????????????????????????? | | ?????????????????????????#??????????????? | | ???????????????????????? ##?????????????? | | ??????????????????????? =????????????? | | ?????????#######?????? #????????????? | | ????????## %####?? ??????????????? | | ????????# ## ????????????????? | | ????????#### #a ??????????????????? | | ??????????## #???????????????????? | | ??????????# ##???????????????????? | | ??????????# ##??????????????????? | | ??????????# @ #??????????????????? | | ??????????# #?????????????? | | ??????????## # #?????????????? | | ???????????## #?????????????? | | ????????????# ##?????????????? | | ????????????### d #?????????????? | | ????????????? ##?????????????? | | ????????????? d # #??????????????? | | ????????????? #??????????????? | | ????????????? #??????????????? | | ???????????? # ###??????????????? | | ???????????? ###????????????????? | | ???????????? ??????????????????? | | ???????????? u ???????????????????? | | ???????????? ###???????????????????? | | ??????????????# ##?????????????????????? | | ??????????????? ???????????????????????? | | ????????????????????????????????????????? | | ????????????????????????????????????????? | | ????????????????????????????????????????? | | ????????????????????????????????????????? | | ????????????????????????????????????????? | | ????????????????????????????????????????? | | ????????????????????????????????????????? | | ????????????????????????????????????????? | +----------------------------------------------------+ Best States ------------- Heat Dissipation 25 Energy Generation 10 Energy Capacity 250 Matter Stores 300 Matter Capacity 300 Sight Range 16 Terrain Scan Range 16 Terrain Scan Density 10 Evasion (%) 55 Offensive Hacking 10 Item Schematics ----------------- None Robot Schematics ------------------ None Fabricated ------------ Nothing Alien Tech Used ----------------- None Achievements -------------- None Challenges ------------ None Game ------ Seed ZhirovWardroneTriangulator Manual? 0 Play Time 00:19:33 Cumulative 10.4 hours Start 2024.04.08 @ 20:20:41 End 2024.04.09 @ 19:46:35 Sessions 2 Manual Loads 0 Difficulty Rogue Special Mode None Game No. 13 Rogue 13 Adventurer 0 Explorer 0 Win Type - Total 0 Types 0/0/0/0/0/0/0/0/0 Lore% 14 Gallery% 18 Achievement% 14 Wizard Run 0 Options --------- Layout 1 ASCII 0 Keyboard 0 Movement Numpad Keybinds 0 Fullscreen 1 Font 24/Smallcaps Map View 50x40 Zoom Use 0% Tactical HUD 0 Map Filters NONE Filters NONE Steam 1 RUN: 0c76bbdb-f99d-4437-a4a1-27063fa8ddf5